Workbook

Sheet 表紙
A23: 2025年後期
A24: 折込プラス紙数表

Sheet 取扱基準
A2: 新聞折込広告取扱基準
A5: 当社は日本新聞協会の「折込広告の取扱基準」および、新聞社の「広告掲載基準」を参考として、折込広告取扱基準を設けております。
A7: つぎのような折込チラシはお引き受けできかねます。
A10: （1） 広告の内容がはっきりしないもの。および、広告主の所在地、事業所名、ＨＰアドレス等のいずれの記載もなく、広告責任者が明確でないもの。
A12: （2） 虚偽または誇大表現により、誤認されるおそれのあるもの。「日本一」「業界一」等の最高・最大級の表現、「絶対に」「確実に」等、商品の性能、
A14: 効能、効果を保証する断定的表現を用いたもの。
A16: （3） 景表法（不当景品付販売・不当表示の禁止）、不正競争防止法（コピー商品等の販売宣伝の禁止）などのほか、薬事法、医療法など法律や条例に
A18: 触れると思われるもの。（医薬品等を否定する内容や迷信に類する非科学的な内容のもの等）
A20: （4） 広告主の主観的意見、意図、表現がみられ、他者を誹謗中傷し、結果的に他者の名誉、信用を傷つけるおそれがある表現のもの。（誹謗中傷広告等）
A22: （5）「新聞業における公正競争規約」に触れる抽選券・金券などを刷り込んだもの、クーポン付き広告に関する規則、運営細則に違反するもの。
A24: （6） 政治問題や係争中（もしくは係争が予想される）問題について、一方的な主張を述べたものや、立候補が予定されている人物の名称を記載するなど、
A26: 選挙の事前運動と推量されるもの。
A28: （7） 煽情的な言葉や、写真、イラスト等を用いた表現で、暴力・犯罪を肯定・礼讃するなど、公序良俗に反する表現のもの。
A30: （8） 不動産広告で、広告主の名称、所在地、販売物件の所在地、地目、建築の可否、建ぺい率、交通アクセス、価格、管理費、維持費、販売条件、
A32: 宅建業法による免許証番号などが明確に記載されてないもの。
A34: （9） 貸金業広告で、貸金業規制法で定められている必要事項が表示されていないもの。 （商号、名称、氏名、登録番号、住所、利率等）
A36: （10）発行本社の新聞と混同、誤認されると思われるものや、他紙の社名、題字、記事、催事などが掲載、引用されているもの。
A38: その他、著作権・肖像権・商標権等を侵害するおそれのあるもの。
A40: （11）新聞社がそれぞれ定めた広告掲載基準に照らして、新聞折込が不適当と認められるもの。
A42: （12）新聞販売店の営業活動に支障をきたし、不利益になると判断されるもの。
A46: ■ 上記に限らず、判断がむずかしいものは、新聞発行本社、関係諸機関の指導・協議によって決めさせていただきます。
A48: なお、ご不明な点がございましたら当社へご相談下さい。

Sheet 災害時注意事項
A2: 大規模災害発生時における新聞折込広告の取り扱いについて
B5: 大規模な災害（大地震、津波、洪水、豪雪、大火災、大規模停電、火山噴火、原子力発電所の事故、新型感染症の大流行、他国からの攻撃など）に見舞われた
B7: 場合、中日新聞折込広告協同組合加盟の折込会社と中日新聞販売店は被災の状況を的確に判断し、折込広告をご愛読者へお届けするために全力を傾注します。
B9: しかしながらライフラインや通信網、輸送ルートなどが遮断され、被災地の新聞販売店や従業員に甚大な被害が及んだ場合は、クライアント様のご要望にお応
B11: えできない場合もあります。
B13: この様に事前の予測と回避が不可能な事態が発生し、折込会社と新聞販売店の努力にも関わらず指定日に新聞折込が出来なかった場合、折込会社と新聞販売店
B15: は一切の責任を負う事ができません。あらかじめご容赦いただきますようお願い申しあげます。
B24: 東海地震に関する「警戒宣言」発令時の折込広告の取り扱いについて
B26: 『大地震への警戒宣言や注意情報が発令された場合、新聞折込広告は中止になります』
B29: 愛知県、三重県の大部分の市町村と岐阜県中津川市は大規模地震対策措置法により、地震防災対策強化地域に指定されています。指定された地域で大規
B31: 模な地震の発生が予知されますと、内閣総理大臣から警戒宣言が発令されることになっています。また東海地震の前兆現象が高まると、気象庁から注意
B33: 情報が発表されます。
B35: 警戒宣言発令後は交通規制が始まり、指定地域内へ車両の進入が禁止されるほか、一般の道路も時速20㎞に速度制限されるため大渋滞の発生が予想され
B37: ます。
B39: このため東海地震の注意情報や警戒宣言の発令と同時に、お客様からお預かりした新聞折込広告の配送作業は「中止」させていただきます。配送中の車
B41: 両に対しては折込広告をお預かりした状態ですみやかに帰社するように指示しますが、交通事情と警察官の指示によって止むを得ず路上に駐車し避難し
B43: なければならない事も想定されます。
B45: すでに配送が完了した新聞折込広告も、新聞販売店での組み込み作業が「中止」になり新聞折込ができなくなります。幸い注意情報や警戒宣言が解除
B47: された場合も、混乱が解消するまでしばらくの間は新聞折込ができない場合もあります。
B49: 何卒ご理解とご了承をいただけますようお願いいたします。

Sheet 取扱事項
A2: 中日新聞専売店の「折込プラス」について
A7: 1. 配布日
A9: ・愛知県：毎月第2金曜日 第4金曜日
C10: ※未購読者への配布は当日とその翌日午前中が原則
A12: ・岐阜県：毎月第2金曜日（※1）
C13: ※未購読者への配布は当日とその翌日中が原則
C14: （※1）一部地域のみ実施となります。
C15: ※2025年8月は実施なし
A16: ・三重県：毎月第2金曜日（※1） 第4金曜日（※2）
C17: ※未購読者への配布は当日とその翌日中が原則
C18: （※1）一部地域のみ実施となります。 （※2）桑名市・員弁郡
A19: ※2025年8月は第4金曜日のみ,12月は第2金曜日のみの実施となります。
A22: 2. 配布物
A24: ・中日新聞折込広告取扱い基準を満たしたチラシ。
A28: 3. 配布方法
A30: ・中日新聞の購読者へは朝刊に折り込み。
A31: ・中日新聞未購読者へは情報紙とともに配布。
A35: 4. 定義に関して
A37: [折込プラス]配布定数＝折込定数＋未購読配布数
A38: ※全戸配布ではございませんのでご注意下さい。
A42: 5. 配布料金
A44: ・配布エリア地区の新聞折込チラシと同額を原則とする。
A45: ・特殊な形態、サイズは折込広告料金に準じ個別に検討する。
A49: 6. 取扱注意事項
A51: ・一部地域では折込プラスサービスは行っておりません。
A52: ・販売店個店単位で折込プラス定数を満たすことが原則となります.
A53: ・合売店では一部他紙一般紙にも折り込まれます。
A54: ・同じ配布エリアでも配布日によって情報紙が異なります。
A55: ・台風などの悪天候の場合、配布日は上記の限りではありません。

Sheet 岐阜県
A1: 折込日 | C1: 広告主 | G1: サイズ
C2: チラシ銘柄 | G2: 部数 | H2: =SUM(F34) -> 0
A3: 岐阜県 | I3: 2025年後期（11月1日以降）
A4: 地 区 | C4: 折込プラス部数 | E4: 依頼部数 | G4: 朝刊折込部数 | I4: 未購読部数
A5: 岐阜市 | C5: =岐阜市!F48 -> 123700 | E5: =岐阜市!G48 -> 0 | F5: =IFERROR(SUM(E5)," ") -> 0 | G5: =岐阜市!H48 -> 44100 | I5: =岐阜市!I48 -> 79600
A6: 瑞穂市 | C6: =瑞穂市・本巣市・本巣郡・山県市!F16 -> 5750 | E6: =瑞穂市・本巣市・本巣郡・山県市!G16 -> 0 | F6: =IFERROR(SUM(E6)," ") -> 0 | G6: =瑞穂市・本巣市・本巣郡・山県市!H16 -> 5750 | I6: =瑞穂市・本巣市・本巣郡・山県市!I16 -> 0
A7: 本巣市 | C7: =瑞穂市・本巣市・本巣郡・山県市!F28 -> 4300 | E7: =瑞穂市・本巣市・本巣郡・山県市!G28 -> 0 | F7: 0 | G7: =瑞穂市・本巣市・本巣郡・山県市!H28 -> 4300 | I7: =瑞穂市・本巣市・本巣郡・山県市!I28 -> 0
A8: 本巣郡 | C8: =瑞穂市・本巣市・本巣郡・山県市!F38 -> 2750 | E8: =瑞穂市・本巣市・本巣郡・山県市!G38 -> 0 | F8: 0 | G8: =瑞穂市・本巣市・本巣郡・山県市!H38 -> 2750 | I8: =瑞穂市・本巣市・本巣郡・山県市!I38 -> 0
A9: 山県市 | C9: =瑞穂市・本巣市・本巣郡・山県市!F48 -> 3850 | E9: =瑞穂市・本巣市・本巣郡・山県市!G48 -> 0 | F9: 0 | G9: =瑞穂市・本巣市・本巣郡・山県市!H48 -> 3850 | I9: =瑞穂市・本巣市・本巣郡・山県市!I48 -> 0
A10: 羽島市 | C10: =羽島市・羽島郡!F27 -> 20600 | E10: =羽島市・羽島郡!G27 -> 0 | F10: 0 | G10: =羽島市・羽島郡!H27 -> 8650 | I10: =羽島市・羽島郡!I27 -> 11950
A11: 羽島郡 | C11: =羽島市・羽島郡!F48 -> 13250 | E11: =羽島市・羽島郡!G48 -> 0 | F11: 0 | G11: =羽島市・羽島郡!H48 -> 4800 | I11: =羽島市・羽島郡!I48 -> 8450
A12: 各務原市 | C12: =各務原市・大垣市・海津市!F21 -> 41800 | E12: =各務原市・大垣市・海津市!G21 -> 0 | F12: 0 | G12: =各務原市・大垣市・海津市!H21 -> 18850 | I12: =各務原市・大垣市・海津市!I21 -> 22950
A13: 大垣市 | C13: =各務原市・大垣市・海津市!F37 -> 24150 | E13: =各務原市・大垣市・海津市!G37 -> 0 | F13: 0 | G13: =各務原市・大垣市・海津市!H37 -> 24150 | I13: =各務原市・大垣市・海津市!I37 -> 0
A14: 海津市 | C14: =各務原市・大垣市・海津市!F48 -> 6200 | E14: =各務原市・大垣市・海津市!G48 -> 0 | F14: 0 | G14: =各務原市・大垣市・海津市!H48 -> 6200 | I14: =各務原市・大垣市・海津市!I48 -> 0
A15: 揖斐郡 | C15: =揖斐郡・不破郡・安八郡・養老郡・美濃加茂市!F13 -> 9350 | E15: =揖斐郡・不破郡・安八郡・養老郡・美濃加茂市!G13 -> 0 | F15: 0 | G15: =揖斐郡・不破郡・安八郡・養老郡・美濃加茂市!H13 -> 9350 | I15: =揖斐郡・不破郡・安八郡・養老郡・美濃加茂市!I13 -> 0
A16: 不破郡 | C16: =揖斐郡・不破郡・安八郡・養老郡・美濃加茂市!F22 -> 5550 | E16: =揖斐郡・不破郡・安八郡・養老郡・美濃加茂市!G22 -> 0 | F16: 0 | G16: =揖斐郡・不破郡・安八郡・養老郡・美濃加茂市!H22 -> 5550 | I16: =揖斐郡・不破郡・安八郡・養老郡・美濃加茂市!I22 -> 0
A17: 安八郡 | C17: =揖斐郡・不破郡・安八郡・養老郡・美濃加茂市!F30 -> 8000 | E17: =揖斐郡・不破郡・安八郡・養老郡・美濃加茂市!G30 -> 0 | F17: 0 | G17: =揖斐郡・不破郡・安八郡・養老郡・美濃加茂市!H30 -> 8000 | I17: =揖斐郡・不破郡・安八郡・養老郡・美濃加茂市!I30 -> 0
A18: 養老郡 | C18: =揖斐郡・不破郡・安八郡・養老郡・美濃加茂市!F38 -> 3950 | E18: =揖斐郡・不破郡・安八郡・養老郡・美濃加茂市!G38 -> 0 | F18: 0 | G18: =揖斐郡・不破郡・安八郡・養老郡・美濃加茂市!H38 -> 3950 | I18: =揖斐郡・不破郡・安八郡・養老郡・美濃加茂市!I38 -> 0
A19: 美濃加茂市 | C19: =揖斐郡・不破郡・安八郡・養老郡・美濃加茂市!F48 -> 7600 | E19: =揖斐郡・不破郡・安八郡・養老郡・美濃加茂市!G48 -> 0 | F19: 0 | G19: =揖斐郡・不破郡・安八郡・養老郡・美濃加茂市!H48 -> 7600 | I19: =揖斐郡・不破郡・安八郡・養老郡・美濃加茂市!I48 -> 0
A20: 加茂郡 | C20: =加茂郡・美濃市・関市!F23 -> 11500 | E20: =加茂郡・美濃市・関市!G23 -> 0 | F20: 0 | G20: =加茂郡・美濃市・関市!H23 -> 11500 | I20: =加茂郡・美濃市・関市!I23 -> 0
A21: 美濃市 | C21: =加茂郡・美濃市・関市!F31 -> 3550 | E21: =加茂郡・美濃市・関市!G31 -> 0 | F21: 0 | G21: =加茂郡・美濃市・関市!H31 -> 3550 | I21: =加茂郡・美濃市・関市!I31 -> 0
A22: 関市 | C22: =加茂郡・美濃市・関市!F48 -> 13150 | E22: =加茂郡・美濃市・関市!G48 -> 0 | F22: 0 | G22: =加茂郡・美濃市・関市!H48 -> 13150 | I22: =加茂郡・美濃市・関市!I48 -> 0
A23: 郡上市 | C23: =郡上市・可児市・可児郡・多治見市!F15 -> 8000 | E23: =郡上市・可児市・可児郡・多治見市!G15 -> 0 | F23: 0 | G23: =郡上市・可児市・可児郡・多治見市!H15 -> 8000 | I23: =郡上市・可児市・可児郡・多治見市!I15 -> 0
A24: 可児市 | C24: =郡上市・可児市・可児郡・多治見市!F26 -> 14200 | E24: =郡上市・可児市・可児郡・多治見市!G26 -> 0 | F24: 0 | G24: =郡上市・可児市・可児郡・多治見市!H26 -> 14200 | I24: =郡上市・可児市・可児郡・多治見市!I26 -> 0
A25: 可児郡 | C25: =郡上市・可児市・可児郡・多治見市!F32 -> 2250 | E25: =郡上市・可児市・可児郡・多治見市!G32 -> 0 | F25: 0 | G25: =郡上市・可児市・可児郡・多治見市!H32 -> 2250 | I25: =郡上市・可児市・可児郡・多治見市!I32 -> 0
A26: 多治見市 | C26: =郡上市・可児市・可児郡・多治見市!F48 -> 21400 | E26: =郡上市・可児市・可児郡・多治見市!G48 -> 0 | F26: 0 | G26: =郡上市・可児市・可児郡・多治見市!H48 -> 21400 | I26: =郡上市・可児市・可児郡・多治見市!I48 -> 0
A27: 土岐市 | C27: =土岐市・瑞浪市・恵那市!F16 -> 9850 | E27: =土岐市・瑞浪市・恵那市!G16 -> 0 | F27: 0 | G27: =土岐市・瑞浪市・恵那市!H16 -> 9850 | I27: =土岐市・瑞浪市・恵那市!I16 -> 0
A28: 瑞浪市 | C28: =土岐市・瑞浪市・恵那市!F28 -> 7450 | E28: =土岐市・瑞浪市・恵那市!G28 -> 0 | F28: 0 | G28: =土岐市・瑞浪市・恵那市!H28 -> 7450 | I28: =土岐市・瑞浪市・恵那市!I28 -> 0
A29: 恵那市 | C29: =土岐市・瑞浪市・恵那市!F48 -> 10050 | E29: =土岐市・瑞浪市・恵那市!G48 -> 0 | F29: 0 | G29: =土岐市・瑞浪市・恵那市!H48 -> 10050 | I29: =土岐市・瑞浪市・恵那市!I48 -> 0
A30: 中津川市 | C30: =中津川市・下呂市!F26 -> 16600 | E30: =中津川市・下呂市!G26 -> 0 | F30: 0 | G30: =中津川市・下呂市!H26 -> 16600 | I30: =中津川市・下呂市!I26 -> 0
A31: 下呂市 | C31: =中津川市・下呂市!F48 -> 8600 | E31: =中津川市・下呂市!G48 -> 0 | F31: 0 | G31: =中津川市・下呂市!H48 -> 8600 | I31: =中津川市・下呂市!I48 -> 0
A32: 高山市 | C32: =高山市・飛騨市!F22 -> 17350 | E32: =高山市・飛騨市!G22 -> 0 | F32: 0 | G32: =高山市・飛騨市!H22 -> 17350 | I32: =高山市・飛騨市!I22 -> 0
A33: 飛騨市 | C33: =高山市・飛騨市!F48 -> 5550 | E33: =高山市・飛騨市!G48 -> 0 | F33: 0 | G33: =高山市・飛騨市!H48 -> 5550 | I33: =高山市・飛騨市!I48 -> 0
A34: 合 計 | C34: =SUM(C5:C33) -> 430300 | F34: =SUM(F5:F33) -> 0 | G34: =SUM(G5:G33) -> 307350 | I34: =SUM(I5:I33) -> 122950
I35: ㈱中日総合サービス

Sheet 岐阜市
A1: 折込日 | E1: 広告主 | H1: サイズ
E2: チラシ銘柄 | H2: 部数 | I2: =SUM(A6) -> 0
E3: ※2025年8月は実施なし
A4: 地区 | D4: 店名 | F4: 折込プラス部数 | G4: 依頼部数 | H4: 朝刊折込部数 | I4: 未購読部数 | J4: 第2金曜日 | K4: 第4金曜日
A5: 岐阜市 | D5: 210110Z01195 | E5: 岐阜中央(中野)N | F5: 4100 | H5: 1450 | I5: =F5-H5 -> 2650 | J5: ○
A6: =SUM(G48) -> 0 | B6: ／ | C6: =SUM(F48) -> 123700 | D6: 210110Z01350 | E6: 岐阜中野入舟支店NM | F6: 5300 | H6: 1800 | I6: =F6-H6 -> 3500 | J6: ○
D7: 210110Z01180 | E7: 岐阜北部(松山)N | F7: 6400 | H7: 1700 | I7: 4700 | J7: ○
D8: 210110Z01230 | E8: 岐阜駅前N | F8: 4000 | H8: 1450 | I8: 2550 | J8: ○
D9: 210110Z01210 | E9: 鏡島N | F9: 6000 | H9: 1750 | I9: 4250 | J9: ○
D10: 210110Z01220 | E10: 岐阜本荘N | F10: 3950 | H10: 1200 | I10: 2750 | J10: ○
D11: 210110Z01250 | E11: 手力NS | F11: 5300 | H11: 1700 | I11: 3600 | J11: ○
D12: 210110Z01240 | E12: 長森NM | F12: 8100 | H12: 2500 | I12: 5600 | J12: ○
D13: 210110Z01060 | E13: 岩田坂NM | F13: 650 | H13: 650 | I13: 0
D14: 210110Z01170 | E14: 日野長森東NM | F14: 950 | H14: 950 | I14: 0
D15: 210110Z01050 | E15: 下芥見NM | F15: 800 | H15: 800 | I15: 0
D16: 210110Z01040 | E16: 大洞NS | F16: 1200 | H16: 1200 | I16: 0
D17: 210110Z01270 | E17: 岐阜加納NM | F17: 5350 | H17: 1800 | I17: 3550 | J17: ○
D18: 210110Z01320 | E18: 岐阜茜部NMS | F18: 4450 | H18: 1450 | I18: 3000 | J18: ○
D19: 210110Z01280 | E19: 加納西部NM | F19: 2200 | H19: 700 | I19: 1500 | J19: ○
D20: 210110Z01290 | E20: 加納六条NM | F20: 3500 | H20: 1150 | I20: 2350 | J20: ○
D21: 210110Z01300 | E21: 岐阜県庁前N | F21: 4950 | H21: 1850 | I21: 3100 | J21: ○
D22: 210110Z01310 | E22: 鶉NMS | F22: 3700 | H22: 1000 | I22: 2700 | J22: ○
D23: 210110Z01160 | E23: 近の島N | F23: 4400 | H23: 1350 | I23: 3050 | J23: ○
D24: 210110Z01130 | E24: 尻毛NS | F24: 5600 | H24: 1600 | I24: 4000 | J24: ○
D25: 210110Z01140 | E25: 岐商前NS | F25: 4550 | H25: 1500 | I25: 3050 | J25: ○
D26: 210110Z01020 | E26: 鷺山NS | F26: 4250 | H26: 1250 | I26: 3000 | J26: ○
D27: 210110Z01340 | E27: 岐阜ときわN | F27: 750 | H27: 750 | I27: 0
D28: 210110Z01120 | E28: 岐阜則武NS | F28: 3650 | H28: 1100 | I28: 2550 | J28: ○
D29: 210110Z01010 | E29: 鵜飼黒野NAS | F29: 5850 | H29: 1750 | I29: 4100 | J29: ○
D30: 210110Z01030 | E30: 藍川橋NS | F30: 2650 | H30: 2650 | I30: 0
D31: 210110Z01080 | E31: 長良北部NS | F31: 3650 | H31: 1250 | I31: 2400 | J31: ○
D32: 210110Z01090 | E32: 長良西部N | F32: 6950 | H32: 2200 | I32: 4750 | J32: ○
D33: 210110Z01100 | E33: 長良中央N | F33: 2750 | H33: 900 | I33: 1850 | J33: ○
D34: 210110Z01360 | E34: 柳津NM | F34: 3700 | H34: 1400 | I34: 2300 | J34: ○
D35: 210110Z01370 | E35: 茜部佐波NMS | F35: 4050 | H35: 1300 | I35: 2750 | J35: ○
E48: =CONCATENATE(FIXED(COUNTA(E5:E47),0,0)," 店") -> 31 店 | F48: =SUM(F5:F47) -> 123700 | G48: =SUM(G5:G47) -> 0 | H48: =SUM(H5:H47) -> 44100 | I48: =SUM(I5:I47) -> 79600
A49: 2025年後期（11月1日以降） | K49: ㈱中日総合サービス

Sheet 瑞穂市・本巣市・本巣郡・山県市
A1: 折込日 | E1: 広告主 | H1: サイズ
E2: チラシ銘柄 | H2: 部数 | I2: =SUM(A6,A19,A31,A41) -> 0
E3: ※2025年8月は実施なし
A4: 地区 | D4: 店名 | F4: 折込プラス部数 | G4: 依頼部数 | H4: 朝刊折込部数 | I4: 未購読部数 | J4: 第2金曜日 | K4: 第4金曜日
A5: 瑞穂市 | D5: 210180Z01010 | E5: 穂積S | F5: 1350 | H5: 1350 | I5: =F5-H5 -> 0
A6: =SUM(G16) -> 0 | B6: ／ | C6: =SUM(F16) -> 5750 | D6: 210180Z01045 | E6: 美江寺NAMGS | F6: 2400 | H6: 2400 | I6: =F6-H6 -> 0
D7: 210180Z01050 | E7: 瑞穂牛牧N | F7: 2000 | H7: 2000 | I7: =F7-H7 -> 0
E16: =CONCATENATE(FIXED(COUNTA(E5:E15),0,0)," 店") -> 3 店 | F16: =SUM(F5:F15) -> 5750 | G16: =SUM(G5:G15) -> 0 | H16: =SUM(H5:H15) -> 5750 | I16: =SUM(I5:I15) -> 0
A18: 本巣市 | D18: 210150Z01080 | E18: 北方西部NS | F18: 1950 | H18: 1950 | I18: =F18-H18 -> 0
A19: =SUM(G28) -> 0 | B19: ／ | C19: =SUM(F28) -> 4300 | D19: 210150Z01040 | E19: 岐阜山添NAMGS | F19: 1750 | H19: 1750 | I19: =F19-H19 -> 0
D20: 210170Z01050 | E20: 根尾NAMG | F20: 600 | H20: 600 | I20: =F20-H20 -> 0
E28: =CONCATENATE(FIXED(COUNTA(E18:E27),0,0)," 店") -> 3 店 | F28: =SUM(F18:F27) -> 4300 | G28: =SUM(G18:G27) -> 0 | H28: =SUM(H18:H27) -> 4300 | I28: =SUM(I18:I27) -> 0
A30: 本巣郡 | D30: 210155Z01010 | E30: 北方NS | F30: 1500 | H30: 1500 | I30: =F30-H30 -> 0
A31: =SUM(G38) -> 0 | B31: ／ | C31: =SUM(F38) -> 2750 | D31: 210155Z01020 | E31: 北方西郷NS | F31: 1250 | H31: 1250 | I31: =F31-H31 -> 0
E38: =CONCATENATE(FIXED(COUNTA(E30:E37),0,0)," 店") -> 2 店 | F38: =SUM(F30:F37) -> 2750 | G38: =SUM(G30:G37) -> 0 | H38: =SUM(H30:H37) -> 2750 | I38: =SUM(I30:I37) -> 0
A40: 山県市 | D40: 210160Z01020 | E40: 高富NA | F40: 2500 | H40: 2500 | I40: =F40-H40 -> 0
A41: =SUM(G48) -> 0 | B41: ／ | C41: =SUM(F48) -> 3850 | D41: 210160Z01011 | E41: 岐阜美山NAMGYS | F41: 1350 | H41: 1350 | I41: =F41-H41 -> 0
E48: =CONCATENATE(FIXED(COUNTA(E40:E47),0,0)," 店") -> 2 店 | F48: =SUM(F40:F47) -> 3850 | G48: =SUM(G40:G47) -> 0 | H48: =SUM(H40:H47) -> 3850 | I48: =SUM(I40:I47) -> 0
A49: 2025年後期（11月1日以降） | K49: ㈱中日総合サービス

Sheet 羽島市・羽島郡
A1: 折込日 | E1: 広告主 | H1: サイズ
E2: チラシ銘柄 | H2: 部数 | I2: =SUM(A6,A30) -> 0
E3: ※2025年8月は実施なし
A4: 地区 | D4: 店名 | F4: 折込プラス部数 | G4: 依頼部数 | H4: 朝刊折込部数 | I4: 未購読部数 | J4: 第2金曜日 | K4: 第4金曜日
A5: 羽島市 | D5: 210120Z01020 | E5: 羽島東部N | F5: 4900 | H5: 2200 | I5: =F5-H5 -> 2700 | J5: ○
A6: =SUM(G27) -> 0 | B6: ／ | C6: =SUM(F27) -> 20600 | D6: 210120Z01040 | E6: 羽島足近N | F6: 1600 | H6: 800 | I6: 800 | J6: ○
D7: 210120Z01030 | E7: 羽島中央N | F7: 1900 | H7: 1000 | I7: 900 | J7: ○
D8: 210120Z01010 | E8: 竹ヶ鼻N | F8: 6250 | H8: 2350 | I8: 3900 | J8: ○
D9: 210120Z01050 | E9: 羽島小熊N | F9: 2900 | H9: 1200 | I9: 1700 | J9: ○
D10: 210120Z01060 | E10: 羽島南部N | F10: 3050 | H10: 1100 | I10: 1950 | J10: ○
E27: =CONCATENATE(FIXED(COUNTA(E5:E26),0,0)," 店") -> 6 店 | F27: =SUM(F5:F26) -> 20600 | G27: =SUM(G5:G26) -> 0 | H27: =SUM(H5:H26) -> 8650 | I27: =SUM(I5:I26) -> 11950
A29: 羽島郡 | D29: 210140Z01050 | E29: 岐南徳田N | F29: 4150 | H29: 1300 | I29: =F29-H29 -> 2850 | J29: ○
A30: =SUM(G48) -> 0 | B30: ／ | C30: =SUM(F48) -> 13250 | D30: 210140Z01060 | E30: 岐南東N | F30: 4500 | H30: 1550 | I30: =F30-H30 -> 2950 | J30: ○
D31: 210140Z01010 | E31: 笠松N | F31: 4600 | H31: 1950 | I31: =F31-H31 -> 2650 | J31: ○
E48: =CONCATENATE(FIXED(COUNTA(E28:E47),0,0)," 店") -> 3 店 | F48: =SUM(F28:F47) -> 13250 | G48: =SUM(G28:G47) -> 0 | H48: =SUM(H28:H47) -> 4800 | I48: =SUM(I28:I47) -> 8450
A49: 2025年後期（11月1日以降） | K49: ㈱中日総合サービス

Sheet 各務原市・大垣市・海津市
A1: 折込日 | E1: 広告主 | H1: サイズ
E2: チラシ銘柄 | H2: 部数 | I2: =SUM(A6,A24,A40) -> 0
E3: ※2025年8月は実施なし
A4: 地区 | D4: 店名 | F4: 折込プラス部数 | G4: 依頼部数 | H4: 朝刊折込部数 | I4: 未購読部数 | J4: 第2金曜日 | K4: 第4金曜日
A5: 各務原市 | D5: 210130Z01010 | E5: 那加中央NS | F5: 3150 | H5: 1100 | I5: =F5-H5 -> 2050 | J5: ○
A6: =SUM(G21) -> 0 | B6: ／ | C6: =SUM(F21) -> 41800 | D6: 210130Z01020 | E6: 那加北部NS | F6: 6000 | H6: 2350 | I6: 3650 | J6: ○
D7: 210130Z01040 | E7: 稲羽N | F7: 1350 | H7: 1350 | I7: 0
D8: 210130Z01050 | E8: 蘇原N | F8: 4250 | H8: 1300 | I8: 2950 | J8: ○
D9: 210130Z01060 | E9: 蘇原北部NS | F9: 2550 | H9: 1100 | I9: 1450 | J9: ○
D10: 210130Z01070 | E10: 尾崎団地N | F10: 850 | H10: 850 | I10: 0
D11: 210130Z01080 | E11: 各務原中央町NS | F11: 4250 | H11: 1650 | I11: 2600 | J11: ○
D12: 210130Z01090 | E12: 各務原NS | F12: 8000 | H12: 3100 | I12: 4900 | J12: ○
D13: 210130Z01110 | E13: 鵜沼団地NS | F13: 5050 | H13: 2400 | I13: 2650 | J13: ○
D14: 210130Z01130 | E14: 鵜沼東NS | F14: 4950 | H14: 2250 | I14: 2700 | J14: ○
D15: 210130Z01120 | E15: 岐阜川島NAMGS | F15: 1400 | H15: 1400 | I15: 0
E21: =CONCATENATE(FIXED(COUNTA(E5:E20),0,0)," 店") -> 11 店 | F21: =SUM(F5:F20) -> 41800 | G21: =SUM(G5:G20) -> 0 | H21: =SUM(H5:H20) -> 18850 | I21: =SUM(I5:I20) -> 22950
A23: 大垣市 | D23: 210210Z01020 | E23: 大垣駅西NS | F23: 2200 | H23: 2200 | I23: =F23-H23 -> 0
A24: =SUM(G37) -> 0 | B24: ／ | C24: =SUM(F37) -> 24150 | D24: 210210Z01010 | E24: 大垣N | F24: 4950 | H24: 4950 | I24: 0
D25: 210210Z01110 | E25: 大垣東部N | F25: 1400 | H25: 1400 | I25: 0
D26: 210210Z01040 | E26: 大垣西部NS | F26: 1550 | H26: 1550 | I26: 0
D27: 210210Z01060 | E27: 大垣中川NAMGS | F27: 2050 | H27: 2050 | I27: 0
D28: 210210Z01070 | E28: 大垣(大迫)NAMGYS | F28: 3550 | H28: 3550 | I28: 0
D29: 210210Z01050 | E29: 北垣NMGS | F29: 3350 | H29: 3350 | I29: 0
D30: 210210Z01080 | E30: 美濃赤坂NAS | F30: 2250 | H30: 2250 | I30: 0
D31: 210215Z01010 | E31: 墨俣NAMGS | F31: 1950 | H31: 1950 | I31: 0
D32: 210215Z01020 | E32: 上石津NYS | F32: 900 | H32: 900 | I32: 0
E37: =CONCATENATE(FIXED(COUNTA(E23:E36),0,0)," 店") -> 10 店 | F37: =SUM(F23:F36) -> 24150 | G37: =SUM(G23:G36) -> 0 | H37: =SUM(H23:H36) -> 24150 | I37: =SUM(I23:I36) -> 0
A39: 海津市 | D39: 210260Z01010 | E39: 海津平田NAMGS | F39: 1550 | H39: 1550 | I39: =F39-H39 -> 0
A40: =SUM(G48) -> 0 | B40: ／ | C40: =SUM(F48) -> 6200 | D40: 210260Z01030 | E40: 海津高須NMS | F40: 1450 | H40: 1450 | I40: =F40-H40 -> 0
D41: 210260Z01040 | E41: 石津NAMGS | F41: 2100 | H41: 2100 | I41: =F41-H41 -> 0
D42: 210260Z01050 | E42: 駒野NAMGS | F42: 1100 | H42: 1100 | I42: =F42-H42 -> 0
E48: =CONCATENATE(FIXED(COUNTA(E38:E47),0,0)," 店") -> 4 店 | F48: =SUM(F38:F47) -> 6200 | G48: =SUM(G38:G47) -> 0 | H48: =SUM(H38:H47) -> 6200 | I48: =SUM(I38:I47) -> 0
A49: 2025年後期（11月1日以降） | K49: ㈱中日総合サービス

Sheet 揖斐郡・不破郡・安八郡・養老郡・美濃加茂市
A1: 折込日 | E1: 広告主 | H1: サイズ
E2: チラシ銘柄 | H2: 部数 | I2: =SUM(A6,A16,A25,A33,A41) -> 0
E3: ※2025年8月は実施なし
A4: 地区 | D4: 店名 | F4: 折込プラス部数 | G4: 依頼部数 | H4: 朝刊折込部数 | I4: 未購読部数 | J4: 第2金曜日 | K4: 第4金曜日
A5: 揖斐郡 | D5: 210221Z01010 | E5: 大野黒野NS | F5: 2300 | H5: 2300 | I5: =F5-H5 -> 0
A6: =SUM(G13) -> 0 | B6: ／ | C6: =SUM(F13) -> 9350 | D6: 210220Z01030 | E6: 大垣池田NAMGS | F6: 3900 | H6: 3900 | I6: =F6-H6 -> 0
D7: 210220Z01040 | E7: 揖斐NAMGS | F7: 3150 | H7: 3150 | I7: =F7-H7 -> 0
E13: =CONCATENATE(FIXED(COUNTA(E5:E12),0,0)," 店") -> 3 店 | F13: =SUM(F5:F12) -> 9350 | G13: =SUM(G5:G12) -> 0 | H13: =SUM(H5:H12) -> 9350 | I13: =SUM(I5:I12) -> 0
A15: 不破郡 | D15: 210230Z01010 | E15: 垂井NS | F15: 2250 | H15: 2250 | I15: =F15-H15 -> 0
A16: =SUM(G22) -> 0 | B16: ／ | C16: =SUM(F22) -> 5550 | D16: 210230Z01020 | E16: 垂井南部NYS | F16: 1700 | H16: 1700 | I16: =F16-H16 -> 0
D17: 210230Z01030 | E17: 関ヶ原NAMGS | F17: 1600 | H17: 1600 | I17: =F17-H17 -> 0
E22: =CONCATENATE(FIXED(COUNTA(E15:E21),0,0)," 店") -> 3 店 | F22: =SUM(F15:F21) -> 5550 | G22: =SUM(G15:G21) -> 0 | H22: =SUM(H15:H21) -> 5550 | I22: =SUM(I15:I21) -> 0
A24: 安八郡 | D24: 210250Z01030 | E24: 広神戸NAMGS | F24: 4400 | H24: 4400 | I24: =F24-H24 -> 0
A25: =SUM(G30) -> 0 | B25: ／ | C25: =SUM(F30) -> 8000 | D25: 210250Z01040 | E25: 安八NAMGS | F25: 1700 | H25: 1700 | I25: =F25-H25 -> 0
D26: 210250Z01020 | E26: 輪之内NAMGS | F26: 1900 | H26: 1900 | I26: =F26-H26 -> 0
E30: =CONCATENATE(FIXED(COUNTA(E24:E29),0,0)," 店") -> 3 店 | F30: =SUM(F24:F29) -> 8000 | G30: =SUM(G24:G29) -> 0 | H30: =SUM(H24:H29) -> 8000 | I30: =SUM(I24:I29) -> 0
A32: 養老郡 | D32: 210240Z01010 | E32: 美濃高田NYS | F32: 2300 | H32: 2300 | I32: =F32-H32 -> 0
A33: =SUM(G38) -> 0 | B33: ／ | C33: =SUM(F38) -> 3950 | D33: 210240Z01020 | E33: 養老NAMYGS | F33: 1650 | H33: 1650 | I33: =F33-H33 -> 0
E38: =CONCATENATE(FIXED(COUNTA(E32:E37),0,0)," 店") -> 2 店 | F38: =SUM(F32:F37) -> 3950 | G38: =SUM(G32:G37) -> 0 | H38: =SUM(H32:H37) -> 3950 | I38: =SUM(I32:I37) -> 0
A40: 美濃加茂市 | D40: 210320Z01010 | E40: 美濃太田NS | F40: 1550 | H40: 1550 | I40: =F40-H40 -> 0
A41: =SUM(G48) -> 0 | B41: ／ | C41: =SUM(F48) -> 7600 | D41: 210320Z01050 | E41: 美濃加茂NAMGS | F41: 2950 | H41: 2950 | I41: =F41-H41 -> 0
D42: 210320Z01040 | E42: 古井NAMGS | F42: 3100 | H42: 3100 | I42: =F42-H42 -> 0
E48: =CONCATENATE(FIXED(COUNTA(E40:E47),0,0)," 店") -> 3 店 | F48: =SUM(F40:F47) -> 7600 | G48: =SUM(G40:G47) -> 0 | H48: =SUM(H40:H47) -> 7600 | I48: =SUM(I40:I47) -> 0
A49: 2025年後期（11月1日以降） | K49: ㈱中日総合サービス

Sheet 加茂郡・美濃市・関市
A1: 折込日 | E1: 広告主 | H1: サイズ
E2: チラシ銘柄 | H2: 部数 | I2: =SUM(A6,A26,A34) -> 0
E3: ※2025年8月は実施なし
A4: 地区 | D4: 店名 | F4: 折込プラス部数 | G4: 依頼部数 | H4: 朝刊折込部数 | I4: 未購読部数 | J4: 第2金曜日 | K4: 第4金曜日
A5: 加茂郡 | D5: 210340Z01011 | E5: 川辺NAMGY | F5: 2100 | H5: 2100 | I5: =F5-H5 -> 0
A6: =SUM(G23) -> 0 | B6: ／ | C6: =SUM(F23) -> 11500 | D6: 210340Z01020 | E6: 坂祝NS | F6: 1100 | H6: 1100 | I6: 0
D7: 210340Z01030 | E7: 加茂野NAMGYS | F7: 2500 | H7: 2500 | I7: 0
D8: 210340Z01140 | E8: 白川口NAMG | F8: 700 | H8: 700 | I8: 0
D9: 210340Z01080 | E9: 切井AMG | F9: 200 | H9: 200 | I9: 0
D10: 210340Z01090 | E10: 黒川NAMG | F10: 500 | H10: 500 | I10: 0
D11: 210340Z01110 | E11: 赤河NAMG | F11: 400 | H11: 400 | I11: 0
D12: 210340Z01120 | E12: 下油井NAMG | F12: 350 | H12: 350 | I12: 0
D13: 210340Z01130 | E13: 佐見NAMGS | F13: 300 | H13: 300 | I13: 0
D14: 210340Z01040 | E14: 神土NAMGS | F14: 650 | H14: 650 | I14: 0
D15: 210340Z01070 | E15: 七宗NAMG | F15: 800 | H15: 800 | I15: 0
D16: 210340Z01050 | E16: 八百津NAMGYS | F16: 1900 | H16: 1900 | I16: 0
E23: =CONCATENATE(FIXED(COUNTA(E5:E22),0,0)," 店") -> 12 店 | F23: =SUM(F5:F22) -> 11500 | G23: =SUM(G5:G22) -> 0 | H23: =SUM(H5:H22) -> 11500 | I23: =SUM(I5:I22) -> 0
A25: 美濃市 | D25: 210310Z01010 | E25: 美濃市NAMGYS | F25: 2100 | H25: 2100 | I25: =F25-H25 -> 0
A26: =SUM(G31) -> 0 | B26: ／ | C26: =SUM(F31) -> 3550 | D26: 210310Z01020 | E26: 牧谷NAMGYS | F26: 1450 | H26: 1450 | I26: =F26-H26 -> 0
E31: =CONCATENATE(FIXED(COUNTA(E24:E30),0,0)," 店") -> 2 店 | F31: =SUM(F24:F30) -> 3550 | G31: =SUM(G24:G30) -> 0 | H31: =SUM(H24:H30) -> 3550 | I31: =SUM(I24:I30) -> 0
A33: 関市 | D33: 210330Z01010 | E33: 関N | F33: 2350 | H33: 2350 | I33: =F33-H33 -> 0
A34: =SUM(G48) -> 0 | B34: ／ | C34: =SUM(F48) -> 13150 | D34: 210330Z01030 | E34: 関西部N | F34: 1700 | H34: 1700 | I34: 0
D35: 210330Z01031 | E35: 関小瀬NAMYGS | F35: 1400 | H35: 1400 | I35: 0
D36: 210330Z01020 | E36: 関東部N | F36: 1950 | H36: 1950 | I36: 0
D37: 210330Z01050 | E37: 関南部N | F37: 1550 | H37: 1550 | I37: 0
D38: 210330Z01060 | E38: 関富野NAMG | F38: 500 | H38: 500 | I38: 0
D39: 210330Z01070 | E39: 中之保（下之保）NAMG | F39: 850 | H39: 850 | I39: 0
D40: 210330Z04060 | E40: 関武芸川NAMGS | F40: 1300 | H40: 1300 | I40: 0
D41: 210330Z04085 | E41: 上之保NAMG | F41: 650 | H41: 650 | I41: 0
D42: 210350Z04010 | E42: 洞戸NAMG | F42: 900 | H42: 900 | I42: 0
E48: =CONCATENATE(FIXED(COUNTA(E33:E47),0,0)," 店") -> 10 店 | F48: =SUM(F33:F47) -> 13150 | G48: =SUM(G33:G47) -> 0 | H48: =SUM(H33:H47) -> 13150 | I48: =SUM(I33:I47) -> 0
A49: 2025年後期（11月1日以降） | K49: ㈱中日総合サービス

Sheet 郡上市・可児市・可児郡・多治見市
A1: 折込日 | E1: 広告主 | H1: サイズ
E2: チラシ銘柄 | H2: 部数 | I2: =SUM(A6,A18,A29,A35) -> 0
E3: ※2025年8月は実施なし
A4: 地区 | D4: 店名 | F4: 折込プラス部数 | G4: 依頼部数 | H4: 朝刊折込部数 | I4: 未購読部数 | J4: 第2金曜日 | K4: 第4金曜日
A5: 郡上市 | D5: 210360Z01010 | E5: 郡上八幡NMS | F5: 2000 | H5: 2000 | I5: =F5-H5 -> 0
A6: =SUM(G15) -> 0 | B6: ／ | C6: =SUM(F15) -> 8000 | D6: 210360Z01025 | E6: 郡上大和NAMG | F6: 1200 | H6: 1200 | I6: 0
D7: 210360Z01040 | E7: 美並NAMGS | F7: 850 | H7: 850 | I7: 0
D8: 210360Z01050 | E8: 相生NAMG | F8: 450 | H8: 450 | I8: 0
D9: 210370Z01020 | E9: 白鳥NAMGS | F9: 2100 | H9: 2100 | I9: 0
D10: 210370Z01030 | E10: 正ヶ洞NAMG | F10: 850 | H10: 850 | I10: 0
D11: 210370Z01040 | E11: 和良NAMGY | F11: 550 | H11: 550 | I11: 0
E15: =CONCATENATE(FIXED(COUNTA(E5:E14),0,0)," 店") -> 7 店 | F15: =SUM(F5:F14) -> 8000 | G15: =SUM(G5:G14) -> 0 | H15: =SUM(H5:H14) -> 8000 | I15: =SUM(I5:I14) -> 0
A17: 可児市 | D17: 210440Z01010 | E17: 広見NMS | F17: 3300 | H17: 3300 | I17: =F17-H17 -> 0
A18: =SUM(G26) -> 0 | B18: ／ | C18: =SUM(F26) -> 14200 | D18: 210440Z01020 | E18: 今渡NMS | F18: 4000 | H18: 4000 | I18: 0
D19: 210440Z01030 | E19: 西可児NMS | F19: 1950 | H19: 1950 | I19: 0
D20: 210440Z01040 | E20: 春里NMS | F20: 2100 | H20: 2100 | I20: 0
D21: 210440Z01011 | E21: 下切NMS | F21: 1150 | H21: 1150 | I21: 0
D22: 210440Z01050 | E22: 伏見兼山NAMGYS | F22: 1700 | H22: 1700 | I22: 0
E26: =CONCATENATE(FIXED(COUNTA(E17:E25),0,0)," 店") -> 6 店 | F26: =SUM(F17:F25) -> 14200 | G26: =SUM(G17:G25) -> 0 | H26: =SUM(H17:H25) -> 14200 | I26: =SUM(I17:I25) -> 0
A28: 可児郡 | D28: 210460Z01010 | E28: 御嵩NAMGS | F28: 2250 | H28: 2250 | I28: =F28-H28 -> 0
A29: =SUM(G32) -> 0 | B29: ／ | C29: =SUM(F32) -> 2250
E32: =CONCATENATE(FIXED(COUNTA(E27:E31),0,0)," 店") -> 1 店 | F32: =SUM(F27:F31) -> 2250 | G32: =SUM(G27:G31) -> 0 | H32: =SUM(H27:H31) -> 2250 | I32: =SUM(I27:I31) -> 0
A34: 多治見市 | D34: 210410Z01010 | E34: 多治見(両藤舎)NAMGS | F34: 7150 | H34: 7150 | I34: =F34-H34 -> 0
A35: =SUM(G48) -> 0 | B35: ／ | C35: =SUM(F48) -> 21400 | D35: 210410Z01020 | E35: 多治見東部NM | F35: 1550 | H35: 1550 | I35: 0
D36: 210410Z01030 | E36: 多治見西部NMS | F36: 1350 | H36: 1350 | I36: 0
D37: 210410Z01040 | E37: 多治見池田NMS | F37: 1250 | H37: 1250 | I37: 0
D38: 210410Z01050 | E38: 小泉NMS | F38: 3000 | H38: 3000 | I38: 0
D39: 210410Z01060 | E39: 北栄NM | F39: 850 | H39: 850 | I39: 0
D40: 210410Z01080 | E40: 多治見脇之島NM | F40: 1300 | H40: 1300 | I40: 0
D41: 210410Z01090 | E41: 多治見姫NMS | F41: 1200 | H41: 1200 | I41: 0
D42: 210410Z01070 | E42: 多治見桜ヶ丘NMS | F42: 1850 | H42: 1850 | I42: 0
D43: 210410Z01100 | E43: 笠原NAMGS | F43: 1900 | H43: 1900 | I43: 0
E48: =CONCATENATE(FIXED(COUNTA(E34:E47),0,0)," 店") -> 10 店 | F48: =SUM(F34:F47) -> 21400 | G48: =SUM(G34:G47) -> 0 | H48: =SUM(H34:H47) -> 21400 | I48: =SUM(I34:I47) -> 0
A49: 2025年後期（11月1日以降） | K49: ㈱中日総合サービス

Sheet 土岐市・瑞浪市・恵那市
A1: 折込日 | E1: 広告主 | H1: サイズ
E2: チラシ銘柄 | H2: 部数 | I2: =SUM(A6,A19,A31) -> 0
E3: ※2025年8月は実施なし
A4: 地区 | D4: 店名 | F4: 折込プラス部数 | G4: 依頼部数 | H4: 朝刊折込部数 | I4: 未購読部数 | J4: 第2金曜日 | K4: 第4金曜日
A5: 土岐市 | D5: 210420Z01010 | E5: 土岐津NMS | F5: 4750 | H5: 4750 | I5: =F5-H5 -> 0
A6: =SUM(G16) -> 0 | B6: ／ | C6: =SUM(F16) -> 9850 | D6: 210420Z01020 | E6: 土岐口NMS | F6: 1200 | H6: 1200 | I6: =F6-H6 -> 0
D7: 210420Z01070 | E7: 妻木NMS | F7: 1100 | H7: 1100 | I7: =F7-H7 -> 0
D8: 210420Z01030 | E8: 下石NS | F8: 1150 | H8: 1150 | I8: =F8-H8 -> 0
D9: 210420Z01040 | E9: 駄知NM | F9: 1650 | H9: 1650 | I9: =F9-H9 -> 0
E16: =CONCATENATE(FIXED(COUNTA(E5:E15),0,0)," 店") -> 5 店 | F16: =SUM(F5:F15) -> 9850 | G16: =SUM(G5:G15) -> 0 | H16: =SUM(H5:H15) -> 9850 | I16: =SUM(I5:I15) -> 0
A18: 瑞浪市 | D18: 210430Z01010 | E18: 瑞浪NAMG | F18: 3200 | H18: 3200 | I18: =F18-H18 -> 0
A19: =SUM(G28) -> 0 | B19: ／ | C19: =SUM(F28) -> 7450 | D19: 210430Z01020 | E19: 瑞浪西部NAMGS | F19: 2600 | H19: 2600 | I19: =F19-H19 -> 0
D20: 210430Z01040 | E20: 釜戸NAMGS | F20: 800 | H20: 800 | I20: =F20-H20 -> 0
D21: 210430Z01030 | E21: 陶NAMGS | F21: 850 | H21: 850 | I21: =F21-H21 -> 0
E28: =CONCATENATE(FIXED(COUNTA(E18:E27),0,0)," 店") -> 4 店 | F28: =SUM(F18:F27) -> 7450 | G28: =SUM(G18:G27) -> 0 | H28: =SUM(H18:H27) -> 7450 | I28: =SUM(I18:I27) -> 0
A30: 恵那市 | D30: 210450Z01010 | E30: 恵那東部NMS | F30: 2950 | H30: 2950 | I30: =F30-H30 -> 0
A31: =SUM(G48) -> 0 | B31: ／ | C31: =SUM(F48) -> 10050 | D31: 210450Z01020 | E31: 恵那(佐伯)NMS | F31: 1800 | H31: 1800 | I31: 0
D32: 210450Z01030 | E32: 武並NAMGS | F32: 700 | H32: 700 | I32: 0
D33: 210450Z01040 | E33: 岩村NAMGS | F33: 1100 | H33: 1100 | I33: 0
D34: 210450Z01050 | E34: 恵那上矢作NAMG | F34: 500 | H34: 500 | I34: 0
D35: 210450Z01060 | E35: 遠山NAMG | F35: 500 | H35: 500 | I35: 0
D36: 210450Z01070 | E36: 鶴岡NAMG | F36: 550 | H36: 550 | I36: 0
D37: 210450Z01080 | E37: 明智NAMYGS | F37: 1950 | H37: 1950 | I37: 0
E48: =CONCATENATE(FIXED(COUNTA(E30:E47),0,0)," 店") -> 8 店 | F48: =SUM(F30:F47) -> 10050 | G48: =SUM(G30:G47) -> 0 | H48: =SUM(H30:H47) -> 10050 | I48: =SUM(I30:I47) -> 0
A49: 2025年後期（11月1日以降） | K49: ㈱中日総合サービス

Sheet 中津川市・下呂市
A1: 折込日 | E1: 広告主 | H1: サイズ
E2: チラシ銘柄 | H2: 部数 | I2: =SUM(A6,A29) -> 0
E3: ※2025年8月は実施なし
A4: 地区 | D4: 店名 | F4: 折込プラス部数 | G4: 依頼部数 | H4: 朝刊折込部数 | I4: 未購読部数 | J4: 第2金曜日 | K4: 第4金曜日
A5: 中津川市 | D5: 210490Z01010 | E5: 中津川東NAMGS | F5: 2350 | H5: 2350 | I5: =F5-H5 -> 0
A6: =SUM(G26) -> 0 | B6: ／ | C6: =SUM(F26) -> 16600 | D6: 210490Z01020 | E6: 中津川西NAMGS | F6: 1550 | H6: 1550 | I6: 0
D7: 210490Z01040 | E7: 中津川北NAMGS | F7: 1450 | H7: 1450 | I7: 0
D8: 210490Z01070 | E8: 坂本NAMGS | F8: 2450 | H8: 2450 | I8: 0
D9: 210490Z01050 | E9: 落合NAMGS | F9: 1150 | H9: 1150 | I9: 0
D10: 210490Z01080 | E10: 苗木NAMGS | F10: 1300 | H10: 1300 | I10: 0
D11: 210490Z01060 | E11: 阿木NAMG | F11: 600 | H11: 600 | I11: 0
D12: 210490Z01090 | E12: 蛭川NAMＧ | F12: 700 | H12: 700 | I12: 0
D13: 210490Z01100 | E13: 美濃坂下NAMGYS | F13: 1750 | H13: 1750 | I13: 0
D14: 210490Z01110 | E14: 福岡NAMG | F14: 850 | H14: 850 | I14: 0
D15: 210490Z01120 | E15: 下野NAMG | F15: 250 | H15: 250 | I15: 0
D16: 210490Z01130 | E16: 田瀬NAMG | F16: 250 | H16: 250 | I16: 0
D17: 210490Z01140 | E17: 付知NAMG | F17: 1300 | H17: 1300 | I17: 0
D18: 210490Z01150 | E18: 加子母NAMGS | F18: 650 | H18: 650 | I18: 0
E26: =CONCATENATE(FIXED(COUNTA(E5:E25),0,0)," 店") -> 14 店 | F26: =SUM(F5:F25) -> 16600 | G26: =SUM(G5:G25) -> 0 | H26: =SUM(H5:H25) -> 16600 | I26: =SUM(I5:I25) -> 0
A28: 下呂市 | D28: 210530Z01010 | E28: 飛騨金山NAMGY | F28: 1400 | H28: 1400 | I28: =F28-H28 -> 0
A29: =SUM(G48) -> 0 | B29: ／ | C29: =SUM(F48) -> 8600 | D29: 210530Z01020 | E29: 東村NAMGY | F29: 400 | H29: 400 | I29: 0
D30: 210530Z01030 | E30: 焼石NAMGS | F30: 550 | H30: 550 | I30: 0
D31: 210530Z01040 | E31: 下呂NAMGS | F31: 1600 | H31: 1600 | I31: 0
D32: 210530Z01050 | E32: 飛騨竹原NAMGS | F32: 850 | H32: 850 | I32: 0
D33: 210530Z01060 | E33: 飛騨萩原NAMGS | F33: 1900 | H33: 1900 | I33: 0
D34: 210530Z01070 | E34: 飛騨川西NAMG | F34: 950 | H34: 950 | I34: 0
D35: 210530Z01080 | E35: 飛騨小坂NAMGY | F35: 950 | H35: 950 | I35: 0
E48: =CONCATENATE(FIXED(COUNTA(E28:E47),0,0)," 店") -> 8 店 | F48: =SUM(F28:F47) -> 8600 | G48: =SUM(G28:G47) -> 0 | H48: =SUM(H28:H47) -> 8600 | I48: =SUM(I28:I47) -> 0
A49: 2025年後期（11月1日以降） | K49: ㈱中日総合サービス

Sheet 高山市・飛騨市
A1: 折込日 | E1: 広告主 | H1: サイズ
E2: チラシ銘柄 | H2: 部数 | I2: =SUM(A6,A25) -> 0
E3: ※2025年8月は実施なし
A4: 地区 | D4: 店名 | F4: 折込プラス部数 | G4: 依頼部数 | H4: 朝刊折込部数 | I4: 未購読部数 | J4: 第2金曜日 | K4: 第4金曜日
A5: 高山市 | D5: 210510Z01010 | E5: 高山NAM | F5: 8300 | H5: 8300 | I5: =F5-H5 -> 0
A6: =SUM(G22) -> 0 | B6: ／ | C6: =SUM(F22) -> 17350 | D6: 210510Z01100 | E6: 高山西部NAM | F6: 1400 | H6: 1400 | I6: 0
D7: 210510Z01110 | E7: 高山北部NAM | F7: 1450 | H7: 1450 | I7: 0
D8: 210510Z01020 | E8: 高山朝日町NAMG | F8: 500 | H8: 500 | I8: 0
D9: 210510Z01030 | E9: 清見NAMG | F9: 650 | H9: 650 | I9: 0
D10: 210510Z01040 | E10: 久々野NAMG | F10: 800 | H10: 800 | I10: 0
D11: 210510Z01050 | E11: ひだ一之宮NAMG | F11: 600 | H11: 600 | I11: 0
D12: 210510Z01060 | E12: 丹生川NAMGS | F12: 1050 | H12: 1050 | I12: 0
D13: 210510Z01070 | E13: 飛騨国府NAMGS | F13: 1650 | H13: 1650 | I13: 0
D14: 210510Z01080 | E14: 上宝NAMG | F14: 500 | H14: 500 | I14: 0
D15: 210510Z01090 | E15: 奥飛騨NAMGYS | F15: 450 | H15: 450 | I15: 0
E22: =CONCATENATE(FIXED(COUNTA(E5:E21),0,0)," 店") -> 11 店 | F22: =SUM(F5:F21) -> 17350 | G22: =SUM(G5:G21) -> 0 | H22: =SUM(H5:H21) -> 17350 | I22: =SUM(I5:I21) -> 0
A24: 飛騨市 | D24: 210520Z01010 | E24: 神岡NYS | F24: 1550 | H24: 1550 | I24: =F24-H24 -> 0
A25: =SUM(G48) -> 0 | B25: ／ | C25: =SUM(F48) -> 5550 | D25: 210520Z01020 | E25: 茂住NAMG | F25: 100 | H25: 100 | I25: 0
D26: 210520Z01060 | E26: 飛騨古川NAMGS | F26: 3200 | H26: 3200 | I26: 0
D27: 210520Z01070 | E27: 角川NAMG | F27: 350 | H27: 350 | I27: 0
D28: 210520Z01050 | E28: 坂上NAMG | F28: 150 | H28: 150 | I28: 0
D29: 210520Z01030 | E29: 打保G | F29: 100 | H29: 100 | I29: 0
D30: 210520Z01040 | E30: 飛騨杉原G | F30: 100 | H30: 100 | I30: 0
E48: =CONCATENATE(FIXED(COUNTA(E24:E47),0,0)," 店") -> 7 店 | F48: =SUM(F24:F47) -> 5550 | G48: =SUM(G24:G47) -> 0 | H48: =SUM(H24:H47) -> 5550 | I48: =SUM(I24:I47) -> 0
A49: 2025年後期（11月1日以降） | K49: ㈱中日総合サービス
